fUSD/lending_fUSD_20250930
["ID","MTS","AMOUNT","RATE_DAILY","PERIOD"]
[388531133,1759234318629,-2114.135,0.00018173,2]
[388531135,1759234324904,-195.0,0.00017442,2]
[388531136,1759234325498,-195.0,0.00018117,2]
[388531137,1759234325556,-195.0,0.00018173,2]
[388531138,1759234325597,-195.0,0.00018173,2]
[388531139,1759234325902,-1267.95,0.00018173,2]
[388531140,1759234332893,-371.148201,0.00018173,2]
[388531141,1759234340554,-71.05153291,0.00017683,2]
[388531142,1759234340568,-357.89693418,0.00017683,2]
[388531143,1759234340579,-71.05153291,0.00018173,2]
[388531144,1759234348022,-500.0,0.00018173,2]
[388531145,1759234355341,-2449.49,0.00018173,2]
[388531203,1759234362970,-151.0,0.00018173,2]
[388531229,1759234369988,-371.148201,0.00018173,2]
[388531271,1759234377800,-742.05,0.00018173,2]
[388531273,1759234384216,-151.0,0.00018173,2]
[388531305,1759234423732,-200.0,0.000171,9]
[388531306,1759234424212,-500.0,0.00016706,2]
[388531318,1759234432087,-1893.31947776,0.000171,9]
[388531319,1759234438884,-2114.135,0.000171,9]
[388531320,1759234445861,-195.0,0.000171,9]
[388531321,1759234453029,-195.0,0.000171,9]
[388531323,1759234460455,-288.47612124,0.000171,9]
[388531324,1759234460489,-206.482696,0.000171,9]
[388531325,1759234460519,-62.43308752,0.000171,9]
[388531326,1759234460534,-153.16619048,0.000171,9]
[388531327,1759234460549,-135.30993076,0.000171,9]
[388531328,1759234460563,-38.19859124,0.000171,9]
[388531329,1759234460573,-168.28410476,0.000171,9]
[388531330,1759234460595,-215.599278,0.000171,9]
[388531331,1759234468355,-371.148201,0.000171,9]
[388531333,1759234482910,-500.0,0.000171,9]
[388531334,1759234490424,-758.97774924,0.000171,9]
[388531335,1759234490445,-758.97774924,0.000171,9]
[388531336,1759234490461,-931.53450152,0.000171,9]
[388531337,1759234497605,-151.0,0.000171,9]
[388531340,1759234553337,392.36,0.0002469,120]
[388531390,1759234859040,-1050.29167796,0.00016602,2]
[388531392,1759234860876,-2399.482741,0.00016602,2]
[388531393,1759234861280,300.0,0.00016601,2]
[388531394,1759234862047,-600.517259,0.00016602,2]
[388531395,1759234864353,-159.07450352,0.00016602,2]
[388531396,1759234866291,-1720.72137774,0.00016602,2]
[388531397,1759234869836,-1917.03079154,0.00016602,2]
[388531398,1759234872340,-2880.04754861,0.00016602,2]
[388531399,1759234872607,-16597.7776708,0.00016602,2]
[388531400,1759234872639,-169.93,0.00017,2]
[388531401,1759234872753,-7974.37657615,0.00017,2]
[388531402,1759234883075,-195.0,0.00017,2]
[388531403,1759234884511,-2360.36068887,0.00017,2]
[388531404,1759234895131,-2360.36068887,0.0001666,2]
[388531405,1759234897877,-424.86831113,0.0001666,2]
[388531417,1759235116849,150.0,0.00015288,2]
[388531418,1759235116901,150.0,0.00015627,2]
[388531419,1759235116968,150.0,0.00015967,2]
[388531420,1759235117045,150.0,0.00016307,2]
[388531421,1759235118446,-150.0,0.00016647,2]
[388531422,1759235120874,150.0,0.00015288,2]
[388531423,1759235120978,150.0,0.0001553,2]
[388531424,1759235121047,150.0,0.00015773,2]
[388531425,1759235121107,150.0,0.00016016,2]
[388531426,1759235121186,150.0,0.00016258,2]
[388531427,1759235121260,150.0,0.00016501,2]
[388531428,1759235123267,-150.0,0.00016744,2]
[388531429,1759235124297,150.0,0.00015288,2]
[388531430,1759235124356,150.0,0.00015627,2]
[388531431,1759235124435,150.0,0.00015967,2]
[388531432,1759235124516,150.0,0.00016307,2]
[388531433,1759235125939,-150.0,0.00016647,2]
[388531434,1759235127600,150.00000001,0.00015288,2]
[388531435,1759235127657,150.0,0.00015288,2]
[388531436,1759235127703,150.0,0.0001553,2]
[388531437,1759235127894,150.0,0.00016016,2]
[388531438,1759235127958,150.0,0.00016258,2]
[388531439,1759235128094,150.0,0.00016501,2]
[388531440,1759235128305,150.0,0.00015773,2]
[388531441,1759235128364,-150.0,0.00016744,2]
[388531442,1759235129426,150.0,0.00015288,2]
[388531443,1759235129468,150.0,0.00015854,2]
[388531444,1759235129543,150.0,0.0001642,2]
[388531445,1759235131335,150.0,0.00015288,2]
[388531446,1759235131401,150.0,0.00016137,2]
[388531447,1759235134735,-357.89693418,0.00016832,2]
[388531448,1759235139026,150.0,0.00015288,2]
[388531449,1759235139087,150.0,0.00015288,2]
[388531450,1759235139151,150.0,0.0001553,2]
[388531451,1759235139216,150.0,0.00015773,2]
[388531452,1759235139265,150.0,0.00016016,2]
[388531453,1759235139709,150.0,0.00016258,2]
[388531454,1759235139769,150.0,0.00016501,2]
[388531455,1759235143732,150.0,0.00015288,2]
[388531456,1759235143805,150.0,0.00015712,2]
[388531457,1759235143882,150.0,0.00016137,2]
[388531458,1759235143940,150.0,0.00016562,2]
[388531459,1759235145057,150.0,0.00015288,2]
[388531460,1759235145124,150.0,0.00015712,2]
[388531461,1759235145190,150.0,0.00016137,2]
[388531462,1759235145251,150.0,0.00016562,2]
[388531463,1759235145811,150.0,0.00015288,2]
[388531464,1759235145870,150.0,0.00015854,2]
[388531465,1759235145947,150.0,0.0001642,2]
[388531467,1759235164831,580.44,0.00015934,2]
[388531476,1759235169925,307.6,0.00015929,2]
[388531479,1759235233587,2264.47,0.00016019,2]
[388531482,1759235290908,3537.97857178,0.0001439,2]
[388531483,1759235299784,200.0,0.00015891,2]
[388531498,1759235322959,2337.05029987,0.00015,2]
[388531499,1759235322993,9084.14806455,0.00015,2]
[388531500,1759235323040,1445.65985336,0.0001,2]
[388531501,1759235333781,-178.0,0.00016743,2]
[388531502,1759235333806,-67.33580761,0.00016744,2]
[388531503,1759235336372,-82.66419239,0.00016744,2]
[388531504,1759235336394,-167.33580761,0.000168,2]
[388531505,1759235338999,-398.91572345,0.000168,2]
[388531509,1759235417144,300.0,0.000161,5]
[388531510,1759235419389,700.0,0.000162,5]
[388531511,1759235421355,1100.0,0.000163,5]
[388531512,1759235423530,1500.0,0.000164,5]
[388531513,1759235426592,1900.0,0.000165,6]
[388531514,1759235427932,300.0,0.000166,6]
[388531515,1759235428510,150.0,0.00015952,7]
[388531529,1759235431520,-300.0,0.000167,6]
[388531530,1759235431530,-1200.0,0.00016831,2]
[388531531,1759235431539,-300.0,0.00016831,2]
[388531532,1759235431549,-946.14490335,0.00016832,2]
[388531533,1759235431560,-1075.21999539,0.00016832,2]
[388531534,1759235431577,-13598.11416773,0.00016832,2]
[388531535,1759235431587,-350.0,0.00016837,2]
[388531536,1759235431597,-490.24836004,0.00016838,2]
[388531537,1759235431608,-500.0,0.00016838,2]
[388531538,1759235431617,-169.80673951,0.00016838,2]
[388531539,1759235431627,-500.0,0.00016838,2]
[388531540,1759235431637,-420.19486485,0.00016838,2]
[388531541,1759235431647,-500.0,0.00016838,2]
[388531542,1759235431656,-500.0,0.00016838,2]
[388531543,1759235431665,-500.0,0.00016838,2]
[388531544,1759235431675,-500.0,0.00016838,2]
[388531545,1759235431684,-522.0787422,0.00016838,2]
[388531546,1759235431694,-500.0,0.00016838,2]
[388531547,1759235431704,-500.0,0.00016838,2]
[388531548,1759235431713,-500.0,0.00016838,2]
[388531549,1759235431723,-500.0,0.00016838,2]
[388531550,1759235431732,-500.0,0.00016838,2]
[388531551,1759235431742,-500.0,0.00016838,2]
[388531552,1759235431751,-500.0,0.00016838,2]
[388531553,1759235431760,-500.0,0.00016838,2]
[388531554,1759235431769,-619.63112244,0.00016838,2]
[388531555,1759235431779,-500.0,0.00016838,2]
[388531556,1759235431788,-500.0,0.00016838,2]
[388531557,1759235431798,-500.0,0.00016838,2]
[388531558,1759235431808,-500.0,0.00016838,2]
[388531559,1759235431818,-500.0,0.00016838,2]
[388531560,1759235431828,-15977.37600065,0.0001684,2]
[388531561,1759235431837,-15977.37600065,0.00016847,2]
[388531562,1759235431847,-566.25153104,0.0001685,2]
[388531563,1759235431856,-15977.37600065,0.00016855,2]
[388531564,1759235431865,-15977.37600065,0.00016862,2]
[388531565,1759235431874,-15977.37600065,0.0001687,2]
[388531566,1759235431884,-15977.37600065,0.00016877,2]
[388531568,1759235431893,-1050.99,0.00016879,2]
[388531570,1759235431903,-15977.37600065,0.00016885,2]
[388531572,1759235431912,-889.15,0.0001689,2]
[388531574,1759235431920,-889.15,0.0001689,2]
[388531576,1759235431930,-889.15,0.0001689,2]
[388531578,1759235431939,-889.15,0.0001689,2]
[388531580,1759235431948,-5639.14,0.0001689,2]
[388531582,1759235431957,-15977.37600065,0.00016892,2]
[388531584,1759235431967,-4639.59765131,0.00016894,2]
[388531586,1759235431976,-500.0,0.00016899,2]
[388531588,1759235431988,-336.99680564,0.00016899,2]
[388531590,1759235431997,-500.0,0.00016899,2]
[388531592,1759235432007,-436.66936262,0.00016899,2]
[388531594,1759235432016,-202.56118778,0.00016899,2]
[388531597,1759235432025,-293.63688044,0.00016899,2]
[388531600,1759235432033,-500.0,0.00016899,2]
[388531602,1759235432043,-168.8734088,0.00016899,2]
[388531605,1759235432052,-235.82906165,0.00016899,2]
[388531608,1759235432061,-6877.40464792,0.000169,2]
[388531611,1759235432070,-15977.37600065,0.000169,2]
[388531614,1759235432079,-1794.34893696,0.000169,2]
[388531617,1759235432088,-479.58783195,0.000169,2]
[388531620,1759235432098,-566.25153104,0.000169,2]
[388531623,1759235432107,-3096.58352024,0.000169,2]
[388531626,1759235432117,-2062.19030094,0.000169,2]
[388531629,1759235432126,-403.78949708,0.000169,2]
[388531632,1759235432135,-107126.84232694,0.000169,2]
[388531671,1759235432479,-1396.31373041,0.000169,2]
[388531674,1759235432493,-2509.39391394,0.000169,2]
[388531676,1759235432504,-512.25234728,0.000169,2]
[388531678,1759235432515,-41130.95123712,0.000169,2]
[388531680,1759235432524,-1242.65,0.00016902,2]
[388531682,1759235432533,-889.15,0.00016924,2]
[388531684,1759235432542,-46251.6895616,0.00016934,2]
[388531686,1759235432551,-877.009371,0.00016938,2]
[388531687,1759235432560,-500.0,0.00016973,2]
[388531688,1759235432570,-500.0,0.00016973,2]
[388531689,1759235432579,-48.54583828,0.00016973,2]
[388531690,1759235432591,-451.45416172,0.00016973,2]
[388531691,1759235432601,-500.0,0.00016973,2]
[388531692,1759235432611,-334.76085836,0.00016973,2]
[388531693,1759235432620,-493.44871127,0.00016973,2]
[388531694,1759235432631,-502.22038836,0.00016973,2]
[388531695,1759235432640,-500.0,0.00016973,2]
[388531696,1759235432650,-500.0,0.00016973,2]
[388531697,1759235432660,-272.39824086,0.00016973,2]
[388531698,1759235432670,-150.0,0.00016986,2]
[388531699,1759235432679,-150.0,0.00016986,2]
[388531700,1759235432689,-241.726899,0.00016986,2]
[388531701,1759235432699,-150.0,0.00016986,2]
[388531702,1759235432708,-150.0,0.00016986,2]
[388531703,1759235432718,-150.0,0.00016986,2]
[388531704,1759235432728,-150.0,0.00016986,2]
[388531705,1759235432737,-255.36740143,0.00016986,2]
[388531706,1759235432748,-154.7982781,0.00016986,2]
[388531707,1759235432757,-154.21320852,0.00016986,2]
[388531708,1759235432766,-5639.14,0.0001699,2]
[388531709,1759235432775,-388.70802444,0.0001699,2]
[388531710,1759235432784,-151.0,0.0001699,2]
[388531711,1759235432795,-151.0,0.0001699,2]
[388531712,1759235432803,-151.0,0.0001699,2]
[388531713,1759235432813,-151.0,0.0001699,2]
[388531714,1759235432821,-33.66836543,0.0001699,2]
[388531715,1759235432833,-117.33163457,0.0001699,2]
[388531716,1759235432843,-151.0,0.0001699,2]
[388531717,1759235432852,-151.0,0.0001699,2]
[388531718,1759235432861,-151.0,0.0001699,2]
[388531719,1759235432870,-151.0,0.0001699,2]
[388531720,1759235432880,-151.0,0.0001699,2]
[388531721,1759235432889,-151.0,0.0001699,2]
[388531722,1759235432898,-151.0,0.0001699,2]
[388531723,1759235432907,-388.70802444,0.0001699,2]
[388531724,1759235432917,-388.70802444,0.0001699,2]
[388531725,1759235432927,-34522.18505547,0.00016994,2]
[388531726,1759235432940,-513.0691,0.00016994,2]
[388531727,1759235433045,-866.5247247,0.00016994,2]
[388531728,1759235433057,-1178.89,0.00016994,2]
[388531729,1759235433070,-296.30613985,0.00016994,2]
[388531730,1759235433158,-25474.3114239,0.00016994,2]
[388531731,1759235433169,-97.06042308,0.00016994,2]
[388531732,1759235433179,-151.0,0.00016997,2]
[388531733,1759235433188,-151.0,0.00016997,2]
[388531734,1759235433197,-151.0,0.00016997,2]
[388531735,1759235433206,-151.0,0.00016997,2]
[388531736,1759235433215,-300.0,0.00016999,2]
[388531737,1759235433224,-300.0,0.00016999,2]
[388531738,1759235433233,-300.0,0.00016999,2]
[388531739,1759235433242,-500.0,0.00017,2]
[388531740,1759235433251,-80097.24213399,0.00017,2]
[388531741,1759235433262,-4038.478995,0.00017,2]
[388531742,1759235433272,-617.1489996,0.00017,2]
[388531743,1759235433283,-859.24,0.00017,2]
[388531744,1759235433295,-3707.1500239,0.00017,2]
[388531745,1759235433305,-543.785283,0.00017,2]
[388531746,1759235433316,-493.45,0.00017,2]
[388531747,1759235433328,-1547.33264574,0.00017,2]
[388531748,1759235433353,-1681.41434328,0.00017,2]
[388531749,1759235433364,-6468.64451849,0.00017,2]
[388531750,1759235435498,-300.0,0.000168,6]
[388531756,1759235437885,-300.0,0.000169,6]
[388531757,1759235437895,-186.65786088,0.000169,2]
[388531758,1759235437904,-3086.83979886,0.00017,2]
[388531759,1759235437915,-576.70803547,0.00017,2]
[388531760,1759235437930,-2539.0,0.00017,2]
[388531761,1759235437962,-4785.13199616,0.00017,2]
[388531762,1759235437988,-1711492.88970472,0.00017,2]
[388531763,1759235438003,-12675042.60145658,0.00017,2]
[388531764,1759235438014,-4336.96284965,0.00017,2]
[388531765,1759235438025,-575.6,0.00017,2]
[388531766,1759235438055,-5000.00111123,0.00017,2]
[388531767,1759235438065,-500.0,0.00017,2]
[388531768,1759235438077,-20683.16048425,0.00017,2]
[388531769,1759235438088,-754.56966197,0.00017,2]
[388531770,1759235438132,-18342.35627695,0.00017,2]
[388531771,1759235439468,-8937.2409492,0.00016888,2]
[388531772,1759235439478,-1094.3199892,0.000169,2]
[388531773,1759235439488,-652.8801809,0.000169,2]
[388531774,1759235439498,-132876.63056197,0.00017,2]
[388531777,1759235440414,-7181717.40301464,0.00017,2]
[388531778,1759235440453,-778.87817224,0.00017,2]
[388531779,1759235440484,-5954.80614434,0.00017,2]
[388531780,1759235440495,-18686.99054394,0.00017,2]
[388531781,1759235440507,-4217.54015466,0.00017,2]
[388531782,1759235440519,-2244.59832752,0.00017,2]
[388531783,1759235440531,-1740.0911033,0.00017,2]
[388531784,1759235440542,-1034.0,0.00017,2]
[388531785,1759235440559,-2338.83688524,0.00017,2]
[388531786,1759235440570,-397.74511496,0.00017,2]
[388531787,1759235440583,-72339.89758512,0.00017,2]
[388531792,1759235442619,-568.84790249,0.00016837,2]
[388531793,1759235442629,-500.0,0.00016837,2]
[388531794,1759235442638,-500.0,0.00017,2]
[388531795,1759235442648,-38779.32476681,0.00017,2]
[388531796,1759235442659,-607.399843,0.00017,2]
[388531797,1759235442731,-2560.16,0.00017,2]
[388531798,1759235442743,-21471.46734621,0.00017,2]
[388531799,1759235442788,-872.26117996,0.00017,2]
[388531800,1759235442810,-934.94,0.00017,2]
[388531801,1759235442907,-313.62008107,0.00017,2]
[388531802,1759235442962,-390.3849186,0.00017,2]
[388531803,1759235442973,-180223.70315621,0.00017,2]
[388531814,1759235446056,-977.96840525,0.00017,2]
[388531820,1759235528165,-1743.11674798,0.0001666,2]
[388531823,1759235529662,-323.73789831,0.0001666,2]
[388531824,1759235530796,-300.0,0.0001666,2]
[388531825,1759235532852,-398.89302505,0.0001666,2]
[388531826,1759235534139,-639.63931113,0.0001666,2]
[388531827,1759235538004,-0.31601753,0.0001666,2]
[388531849,1759235658374,-250.0,0.00016619,2]
[388531850,1759235682971,6290.92,0.00016568,2]
[388531857,1759235722763,-923.84,0.00016696,2]
[388531858,1759235722807,-2406.32,0.00016696,2]
[388531859,1759235730072,-6174.70120249,0.00016696,2]
[388531861,1759235803577,463.07,0.00016119,2]
[388531863,1759235835626,200.0,0.00015994,2]
[388531865,1759235884697,-207.66601027,0.00016644,2]
[388531866,1759235893373,206.59887855,0.0001667,2]
[388531867,1759235894574,-93.40112145,0.0001667,2]
[388531868,1759235920570,846.33,0.00015972,2]
[388531869,1759235988489,-195.0,0.00016669,2]
[388531870,1759235988510,-500.0,0.00016669,2]
[388531871,1759235988530,-195.0,0.0001669,2]
[388531872,1759235988552,-550.0,0.00016694,2]
[388531873,1759235988576,-500.0,0.00016695,2]
[388531874,1759235988600,-500.0,0.00016695,2]
[388531875,1759235988620,-500.0,0.00016695,2]
[388531876,1759235988642,-405.38166501,0.00016695,2]
[388531877,1759235988665,-500.0,0.00016695,2]
[388531878,1759235988686,-500.0,0.00016695,2]
[388531879,1759235988709,-500.0,0.00016695,2]
[388531880,1759235988730,-228.88989728,0.00016695,2]
[388531881,1759235988753,-500.0,0.00016695,2]
[388531882,1759235988776,-500.0,0.00016695,2]
[388531883,1759235988798,-500.0,0.00016695,2]
[388531884,1759235988820,-500.0,0.00016695,2]
[388531885,1759235988841,-642.47551055,0.00016695,2]
[388531886,1759235988866,-333.59292716,0.00016695,2]
[388531887,1759235993821,1740.33,0.00015949,2]
[388531906,1759236152915,178.13,0.0001638,2]
[388531907,1759236159622,1463.3,0.00015903,2]
[388531915,1759236265070,150.0,0.000164,2]
[388531916,1759236277958,200.0,0.00015953,2]
[388531919,1759236306871,150.0,0.00015288,2]
[388531920,1759236306938,150.0,0.00015571,2]
[388531921,1759236306989,150.0,0.00015854,2]
[388531922,1759236307038,150.0,0.00016137,2]
[388531923,1759236307090,150.0,0.0001642,2]
[388531924,1759236310426,150.1938001,0.00015288,2]
[388531925,1759236310566,150.0,0.00015288,2]
[388531926,1759236310627,150.0,0.00015571,2]
[388531927,1759236310682,150.0,0.00015854,2]
[388531928,1759236310739,150.0,0.00016137,2]
[388531929,1759236310809,150.0,0.0001642,2]
[388531930,1759236310927,150.0,0.00015288,2]
[388531931,1759236310977,150.0,0.00015365,2]
[388531932,1759236311027,150.0,0.00015442,2]
[388531933,1759236311080,150.0,0.00015519,2]
[388531934,1759236311187,150.0,0.00015597,2]
[388531935,1759236311256,150.0,0.00015674,2]
[388531936,1759236311306,150.0,0.00015751,2]
[388531937,1759236311352,150.0,0.00015828,2]
[388531938,1759236311757,150.0,0.00015905,2]
[388531939,1759236311906,150.0,0.00015983,2]
[388531940,1759236311964,150.0,0.0001606,2]
[388531941,1759236312102,150.0,0.00016137,2]
[388531942,1759236312161,150.0,0.00016214,2]
[388531943,1759236312211,150.0,0.00016291,2]
[388531944,1759236312260,150.0,0.00016369,2]
[388531945,1759236312317,150.0,0.00016446,2]
[388531946,1759236312369,150.0,0.00016523,2]
[388531947,1759236312420,150.0,0.000166,2]
[388531948,1759236314928,150.00000001,0.00015288,2]
[388531949,1759236317480,150.0,0.00015288,2]
[388531950,1759236317547,150.0,0.00015712,2]
[388531951,1759236317610,150.0,0.00016137,2]
[388531952,1759236317674,150.0,0.00016562,2]
[388531953,1759236317862,150.0,0.00015288,2]
[388531954,1759236317935,150.0,0.00015712,2]
[388531955,1759236317990,150.0,0.00016137,2]
[388531956,1759236318047,150.0,0.00016562,2]
[388531957,1759236318897,153.8,0.00015953,2]
[388531958,1759236326399,666.0,0.00015953,3]
[388531959,1759236326458,150.0,0.00015288,2]
[388531960,1759236326509,150.0,0.00015712,2]
[388531961,1759236326570,150.0,0.00016137,2]
[388531962,1759236326637,150.0,0.00016562,2]
[388531963,1759236326813,150.0,0.00015288,2]
[388531964,1759236326868,150.0,0.00016137,2]
[388531965,1759236327755,150.0,0.00015288,2]
[388531966,1759236327801,150.0,0.00016137,2]
[388531967,1759236327968,150.0,0.00015288,2]
[388531968,1759236328040,150.0,0.00015712,2]
[388531969,1759236328115,150.0,0.00016137,2]
[388531970,1759236328250,150.0,0.00016562,2]
[388531971,1759236328308,150.0,0.00015288,2]
[388531972,1759236328395,150.0,0.00015288,2]
[388531973,1759236330975,150.0,0.00015288,2]
[388531974,1759236331031,150.0,0.00015712,2]
[388531975,1759236331090,150.0,0.00016137,2]
[388531976,1759236331154,150.0,0.00016562,2]
[388531977,1759236332785,150.0,0.00015288,2]
[388531978,1759236332833,150.0,0.00015854,2]
[388531979,1759236332918,150.0,0.0001642,2]
[388531980,1759236338114,150.0,0.00015288,2]
[388531981,1759236338203,150.0,0.00016137,2]
[388531982,1759236338402,150.0,0.00015288,2]
[388531983,1759236338462,150.0,0.00015712,2]
[388531984,1759236338536,150.0,0.00016137,2]
[388531985,1759236338594,150.0,0.00016562,2]
[388531986,1759236338872,150.0,0.00015288,2]
[388531987,1759236338938,150.0,0.00015458,2]
[388531988,1759236338988,150.0,0.00015627,2]
[388531989,1759236339050,150.0,0.00015797,2]
[388531990,1759236339120,150.0,0.00015967,2]
[388531991,1759236339184,150.0,0.00016137,2]
[388531992,1759236339263,150.0,0.00016307,2]
[388531993,1759236339349,150.0,0.00016477,2]
[388531994,1759236339655,150.0,0.00015712,2]
[388531995,1759236339779,150.0,0.00016137,2]
[388531996,1759236339878,150.0,0.00016562,2]
[388531997,1759236340202,150.0,0.00015288,2]
[388531999,1759236402659,150.0,0.00015873,2]
[388532007,1759236488449,150.0,0.00015863,7]
[388532010,1759236547121,739.07,0.00015852,2]
[388532033,1759236631701,-654.9264217,0.00016644,2]
[388532034,1759236631713,-84.1435783,0.00016644,2]
[388532035,1759236631723,-150.0,0.00016647,2]
[388532036,1759236631733,-519.155279,0.00016654,2]
[388532037,1759236631743,-636.76928905,0.00016662,2]
[388532038,1759236631758,-778.54212568,0.00016662,2]
[388532039,1759236631815,-320.85858527,0.00016662,2]
[388532040,1759236631824,-150.0,0.00016677,2]
[388532041,1759236631834,-300.0,0.00016693,2]
[388532042,1759236631844,-1200.0,0.00016693,2]
[388532043,1759236631854,-160.0,0.00016694,2]
[388532044,1759236631863,-250.0,0.00016694,2]
[388532045,1759236631873,-2500.0,0.00016694,2]
[388532046,1759236631883,-195.0,0.00016694,2]
[388532047,1759236631892,-257.36126675,0.00016694,2]
[388532048,1759236631902,-166.40707284,0.00016695,2]
[388532049,1759236631912,-500.0,0.00016695,2]
[388532050,1759236631922,-500.0,0.00016695,2]
[388532051,1759236631933,-500.0,0.00016695,2]
[388532052,1759236631942,-500.0,0.00016695,2]
[388532053,1759236631952,-500.0,0.00016695,2]
[388532054,1759236631962,-500.0,0.00016695,2]
[388532055,1759236631971,-500.0,0.00016695,2]
[388532056,1759236631981,-500.0,0.00016695,2]
[388532057,1759236631990,-500.0,0.00016695,2]
[388532058,1759236632000,-500.0,0.00016695,2]
[388532059,1759236632010,-500.0,0.00016695,2]
[388532060,1759236632019,-500.0,0.00016695,2]
[388532061,1759236632028,-500.0,0.00016695,2]
[388532062,1759236632038,-500.0,0.00016695,2]
[388532063,1759236632047,-500.0,0.00016695,2]
[388532064,1759236632057,-500.0,0.00016695,2]
[388532065,1759236632066,-500.0,0.00016695,2]
[388532066,1759236632076,-500.0,0.00016695,2]
[388532067,1759236632085,-500.0,0.00016695,2]
[388532068,1759236632094,-500.0,0.00016695,2]
[388532069,1759236632104,-500.0,0.00016695,2]
[388532070,1759236632114,-500.0,0.00016695,2]
[388532071,1759236632123,-500.0,0.00016695,2]
[388532072,1759236632133,-500.0,0.00016695,2]
[388532073,1759236632142,-500.0,0.00016695,2]
[388532075,1759236632152,-500.0,0.00016695,2]
[388532077,1759236632161,-500.0,0.00016695,2]
[388532080,1759236632170,-300.0,0.00016695,2]
[388532083,1759236632180,-2500.0,0.00016695,2]
[388532087,1759236632189,-1102.74662557,0.00016695,2]
[388532090,1759236632198,-110.31844564,0.00016695,2]
[388532099,1759236632234,-1459.41560526,0.00016695,2]
[388532103,1759236632247,-80.1359491,0.00016695,2]
[388532105,1759236632256,-863.16180135,0.00016695,2]
[388532107,1759236632267,-136.83819865,0.00016695,2]
[388532109,1759236632276,-314.10179226,0.00016695,2]
[388532111,1759236632285,-4357.8807156,0.00016696,2]
[388532114,1759236632296,-22339.33808191,0.00016696,2]
[388532115,1759236632305,-150.0,0.00016703,2]
[388532116,1759236632314,-150.0,0.00016703,2]
[388532117,1759236632324,-150.0,0.00016755,2]
[388532118,1759236632334,-2606.55070746,0.00016795,2]
[388532119,1759236632343,-2606.55070746,0.00016807,2]
[388532120,1759236632353,-150.0,0.00016816,2]
[388532121,1759236632363,-2606.55070746,0.00016818,2]
[388532122,1759236632373,-151.0,0.0001682,2]
[388532123,1759236632383,-151.0,0.0001682,2]
[388532124,1759236632392,-151.0,0.0001682,2]
[388532125,1759236632402,-200.0,0.0001682,2]
[388532126,1759236632411,-151.0,0.0001682,2]
[388532127,1759236632420,-151.0,0.0001682,2]
[388532128,1759236632430,-500.0,0.0001682,2]
[388532129,1759236632439,-151.0,0.0001682,2]
[388532130,1759236632448,-500.0,0.0001682,2]
[388532131,1759236632457,-151.0,0.0001682,2]
[388532132,1759236632466,-500.0,0.0001682,2]
[388532133,1759236632475,-151.0,0.0001682,2]
[388532134,1759236632485,-151.0,0.0001682,2]
[388532135,1759236632494,-618.45682338,0.0001682,2]
[388532136,1759236632503,-151.0,0.0001682,2]
[388532137,1759236632513,-151.0,0.0001682,2]